bitfinex-derivatives/quotes_BTCF0:USTF0_20240815
["timestamp","ask_amount","ask_price","bid_price","bid_amount"]
[1723687043018,0.36092336,58589.0,58588.0,4.491764]
[1723687043228,0.3608,58604.0,58589.0,0.51204]
[1723687043421,0.3608,58604.0,58603.0,0.059709]
[1723687043624,0.3608,58611.0,58610.0,0.059702]
[1723687043929,0.3608,58611.0,58610.0,0.219702]
[1723687044128,0.3608,58617.0,58616.0,0.059695]
[1723687044331,0.3608,58617.0,58616.0,0.741495]
[1723687044332,0.24400619,58617.0,58616.0,0.741495]
[1723687044635,8e-07,58617.0,58616.0,1.102295]
[1723687045026,8e-07,58617.0,58616.0,0.741495]
[1723687045331,8e-07,58617.0,58616.0,1.20119]
[1723687045628,8e-07,58617.0,58616.0,0.80119]
[1723687045831,0.7399022,58617.0,58610.0,0.1928]
[1723687046028,0.7399022,58617.0,58579.0,0.059733]
[1723687046029,0.059702,58610.0,58599.0,0.059712]
[1723687046229,0.3608,58606.0,58605.0,0.15025603]
[1723687046445,0.3608,58606.0,58605.0,0.00025603]
[1723687046624,0.7007014,58606.0,58605.0,0.00025603]
[1723687048228,0.3608,58606.0,58605.0,0.67213603]
[1723687048430,0.3608,58611.0,58610.0,0.059702]
[1723687048736,8e-07,58617.0,58616.0,0.059695]
[1723687048932,8e-07,58617.0,58616.0,0.209695]
[1723687049131,0.258,58632.0,58616.0,0.209695]
[1723687049132,0.3608,58638.0,58633.0,0.059678]
[1723687049330,0.5008,58638.0,58633.0,0.15]
[1723687049526,0.8407014,58638.0,58633.0,0.15]
[1723687049920,0.059677,58634.0,58621.0,0.59956]
[1723687050119,0.3608,58630.0,58622.0,0.059689]
[1723687050331,0.3608,58630.0,58622.0,0.15]
[1723687050636,0.7007014,58630.0,58623.0,0.059688]
[1723687050832,0.7007014,58630.0,58623.0,0.199688]
[1723687051135,0.3608,58625.0,58623.0,0.14]
[1723687051325,0.420486,58625.0,58623.0,0.14]
[1723687051524,0.7603874,58625.0,58623.0,0.14]
[1723687051719,0.059688,58624.0,58622.0,0.00025579]
[1723687051924,0.66176,58624.0,58582.0,0.05973]
[1723687052121,0.059708,58604.0,58596.0,0.23876]
[1723687052326,0.00017869,58603.0,58596.0,0.199716]
[1723687052732,0.34008009,58603.0,58596.0,0.199716]
[1723687053329,0.34008009,58603.0,58597.0,0.059715]
[1723687053530,0.34008009,58603.0,58599.0,0.059713]
[1723687053735,0.34008009,58603.0,58599.0,0.219713]
[1723687054136,0.3608,58622.0,58602.0,0.3608]
[1723687054332,0.1916,58623.0,58602.0,0.5108]
[1723687054333,0.3608,58613.0,58602.0,0.5108]
[1723687054638,0.420499,58613.0,58607.0,0.059704]
[1723687054831,0.7604004,58613.0,58607.0,0.209704]
[1723687055333,0.0001981,58612.0,58607.0,0.209704]
[1723687055523,0.0001981,58612.0,58607.0,0.15]
[1723687055724,0.3400995,58612.0,58608.0,0.059703]
[1723687055923,0.3400995,58612.0,58608.0,0.209703]
[1723687056530,0.3400995,58612.0,58608.0,0.15]
[1723687056733,0.3400995,58612.0,58610.0,0.059701]
[1723687057035,0.00025579,58616.0,58610.0,0.059701]
[1723687057036,0.00025579,58616.0,58615.0,0.059696]
[1723687057235,0.3608,58626.0,58615.0,0.5008]
[1723687057425,0.7107014,58626.0,58624.0,0.059687]
[1723687057630,0.3499014,58626.0,58624.0,0.199686]
[1723687058037,0.3399014,58626.0,58625.0,0.059686]
[1723687058236,0.34007836,58626.0,58625.0,0.209686]
[1723687058438,0.00017696,58626.0,58625.0,0.209686]
[1723687059034,0.00017696,58626.0,58625.0,0.721406]
[1723687059239,1.43252,58626.0,58620.0,0.00025579]
[1723687059441,0.3009,58620.0,58605.0,0.059706]
[1723687059737,0.3608,58614.0,58610.0,0.059701]
[1723687060038,0.3608,58614.0,58610.0,0.15]
[1723687060231,0.0597,58612.0,58610.0,0.15]
[1723687060427,0.2097,58612.0,58610.0,0.15]
[1723687060840,0.15,58612.0,58610.0,0.15]
[1723687061139,0.00014749,58613.0,58610.0,0.15]
[1723687061835,0.00014749,58613.0,58612.0,0.059699]
[1723687062033,0.00014749,58613.0,58612.0,0.219699]
[1723687062433,0.00025579,58617.0,58616.0,0.059695]
[1723687062732,0.00025579,58617.0,58616.0,0.560495]
[1723687063249,0.4102619,58626.0,58625.0,0.059686]
[1723687063435,0.41046519,58626.0,58625.0,0.199686]
[1723687065537,0.41046519,58626.0,58625.0,0.14]
[1723687066238,0.41046519,58626.0,58622.0,0.38]
[1723687066537,0.3608,58608.0,58572.0,0.17843923]
[1723687066747,0.7216,58591.0,58590.0,0.25174219]
[1723687067044,0.7217558,58591.0,58590.0,0.25174219]
[1723687067242,0.7217558,58591.0,58590.0,4.02174219]
[1723687068238,0.7217558,58591.0,58590.0,3.87174219]
[1723687068239,1.7837958,58591.0,58590.0,3.87174219]
[1723687068445,1.85113546,58591.0,58590.0,3.77]
[1723687068741,0.7217558,58591.0,58590.0,3.77]
[1723687068929,0.8917558,58591.0,58590.0,3.77]
[1723687069537,0.7217558,58591.0,58590.0,3.94]
[1723687069737,0.7217558,58591.0,58590.0,4.45204]
[1723687072750,0.7217558,58591.0,58590.0,4.511762]
[1723687073641,0.06733932,58606.0,58590.0,4.511762]
[1723687073642,0.05047635,58608.0,58591.0,0.512]
[1723687073850,0.3608,58618.0,58591.0,0.512]
[1723687073851,0.05047635,58617.0,58613.0,0.059699]
[1723687074039,0.3608,58614.0,58613.0,0.059699]
[1723687074240,0.3608,58614.0,58613.0,3.829699]
[1723687074437,0.3608,58614.0,58613.0,3.77]
[1723687074650,0.36094946,58614.0,58613.0,3.77]
[1723687076236,0.36094946,58614.0,58613.0,3.91]
[1723687076237,0.00014946,58614.0,58613.0,3.91]
[1723687076438,0.00014946,58614.0,58608.0,0.00025579]
[1723687076641,0.00014946,58614.0,58572.0,0.11869923]
[1723687076843,0.00014946,58614.0,58570.0,0.0599075]
[1723687076844,0.00012027,58572.0,58570.0,0.0599075]
[1723687077035,1.0226,58571.0,58570.0,0.1601655]
[1723687077442,1.0226,58571.0,58570.0,3.9301655]
[1723687078336,1.0226,58571.0,58570.0,3.9899075]
[1723687078944,1.0226,58571.0,58570.0,3.9301655]
[1723687079345,0.7216,58571.0,58570.0,3.9301655]
[1723687080146,0.7216,58571.0,58570.0,4.1690855]
[1723687080447,0.7216,58571.0,58570.0,5.1410275]
[1723687080745,0.7216,58571.0,58570.0,4.7410275]
[1723687081634,0.7216,58571.0,58570.0,5.1410275]
[1723687082554,0.7216,58571.0,58570.0,4.7410275]
[1723687082850,0.7216,58571.0,58570.0,4.7410675]
[1723687083059,0.7216,58571.0,58570.0,5.1410675]
[1723687083351,0.617709,58571.0,58570.0,5.2008095]
[1723687083947,0.0002561,58576.0,58575.0,0.059737]
[1723687084146,1e-07,58576.0,58575.0,0.791634]
[1723687084446,1e-07,58576.0,58575.0,1.38735413]
[1723687084650,0.0597361,58576.0,58575.0,3.93]
[1723687084847,0.2197361,58576.0,58575.0,3.93]
[1723687085342,0.2794721,58576.0,58575.0,3.77]
[1723687085646,0.059742,58570.0,58540.0,0.3608]
[1723687085849,0.3608,58542.0,58541.0,0.059772]
[1723687086045,0.3608,58542.0,58541.0,0.48610243]
[1723687086349,0.3608,58542.0,58541.0,0.99854243]
[1723687086541,0.3608,58542.0,58541.0,0.742212]
[1723687086746,0.3608,58542.0,58541.0,5.17007881]
[1723687086747,0.36055808,58542.0,58541.0,5.17007881]
[1723687087844,6.8e-07,58542.0,58541.0,5.22985081]
[1723687088047,7.8e-07,58547.0,58546.0,0.119534]
[1723687088247,0.3608,58555.0,58546.0,0.119534]
[1723687088248,0.3608,58562.0,58561.0,0.059752]
[1723687088451,0.3608,58575.0,58561.0,0.17]
[1723687088749,0.3608,58587.0,58586.0,0.059726]
[1723687088948,0.3608,58587.0,58586.0,0.199726]
[1723687089140,0.3608,58587.0,58586.0,1.111806]
[1723687089341,0.3608,58592.0,58591.0,0.059721]
[1723687089541,0.3608,58592.0,58591.0,0.229721]
[1723687089751,0.059754,58559.0,58557.0,0.10175093]
[1723687089954,0.3608,58570.0,58558.0,0.3608]
[1723687090145,0.3608,58570.0,58568.0,3.77]
[1723687090338,0.3608,58570.0,58568.0,3.94]
[1723687090752,0.00017098,58569.0,58568.0,3.94]
[1723687095560,0.05991398,58569.0,58568.0,3.94]
[1723687096451,0.79189698,58569.0,58568.0,3.94]
[1723687096787,0.27965698,58569.0,58568.0,3.77]
[1723687097059,0.059745,58567.0,58422.0,0.27087026]
[1723687097258,0.059745,58567.0,46898.0,4e-05]
[1723687097259,0.301,58529.0,58522.0,0.059791]
[1723687097460,0.3608,58523.0,58522.0,0.14]
[1723687097768,0.3608,58523.0,58522.0,0.23908]
[1723687097956,0.36095516,58523.0,58522.0,4.00908]
[1723687098162,0.36095516,58523.0,58522.0,0.23908]
[1723687098355,0.059797,58517.0,58506.0,0.23908]
[1723687098574,0.3608,58512.0,58507.0,0.059806]
[1723687098858,0.3608,58512.0,58511.0,3.77]
[1723687099062,0.7216,58512.0,58511.0,3.92]
[1723687099258,0.7216,58512.0,58511.0,3.77]
[1723687099851,0.7216,58512.0,58511.0,4.85272]
[1723687100247,0.7216,58512.0,58511.0,5.10822903]
[1723687100452,0.7216,58512.0,58511.0,4.70822903]
[1723687100646,0.7216,58512.0,58511.0,3.94]
[1723687101553,0.8716,58512.0,58511.0,3.77]
[1723687101752,0.7216,58512.0,58511.0,3.77]
[1723687101958,0.8816,58512.0,58511.0,3.77]
[1723687102357,0.059807,58507.0,58506.0,0.00025636]
[1723687102566,0.570607,58507.0,58506.0,0.00025636]
[1723687103268,0.3608,58507.0,58506.0,0.16025636]
[1723687103453,0.3608,58507.0,58506.0,3.93025636]
[1723687103854,0.3608,58507.0,58506.0,4.44301636]
[1723687104361,0.3608,58507.0,58506.0,4.84301636]
[1723687104666,0.00025636,58517.0,58516.0,0.059798]
[1723687104862,0.00025636,58517.0,58516.0,0.15]
[1723687105163,0.059806,58508.0,58506.0,0.00025636]
[1723687105361,0.7216,58507.0,58506.0,0.00025636]
[1723687105594,0.7216,58507.0,58451.0,0.08462781]
[1723687105595,0.059845,58470.0,58451.0,0.08462781]
[1723687105759,0.3608,58452.0,58451.0,0.15]
[1723687105962,0.3608,58456.0,58455.0,0.05986]
[1723687106266,0.3608,58467.0,58455.0,0.39916]
[1723687106452,0.1301,58506.0,58463.0,0.3608]
[1723687106453,0.00021555,58469.0,58463.0,0.3608]
[1723687106657,0.00021555,58469.0,58468.0,0.420646]
[1723687106853,0.3608,58485.0,58476.0,0.059838]
[1723687107054,0.3608,58485.0,58481.0,0.059833]
[1723687107256,0.3608,58485.0,58482.0,0.23924]
[1723687107451,0.3608,58485.0,58482.0,0.39924]
[1723687107852,0.00015473,58484.0,58483.0,0.572791]
[1723687108156,0.00015473,58484.0,58483.0,0.732791]
[1723687108556,0.00015473,58484.0,58483.0,4.902791]
[1723687108856,0.00025658,58486.0,58485.0,0.059829]
[1723687109055,0.3608,58506.0,58485.0,0.5208]
[1723687109260,0.3608,58499.0,58486.0,0.3608]
[1723687109476,0.3608,58499.0,58497.0,0.059816]
[1723687109760,0.3608,58512.0,58498.0,4.28284]
[1723687109957,0.00011408,58511.0,58503.0,0.059811]
[1723687110159,0.00011408,58511.0,58503.0,0.209811]
[1723687110477,0.420609,58505.0,58503.0,0.15]
[1723687110763,0.059814,58500.0,58498.0,3.7696295]
[1723687110963,0.36091408,58499.0,58498.0,3.7696295]
[1723687111265,0.87375408,58499.0,58498.0,3.7696295]
[1723687112061,0.36091408,58499.0,58498.0,3.7696295]
[1723687114061,1.35375408,58499.0,58498.0,3.7696295]
[1723687114861,1.27375408,58499.0,58498.0,3.7696295]
[1723687115455,0.36091408,58499.0,58498.0,3.7696295]
[1723687116464,0.36091408,58499.0,58498.0,3.8294455]
[1723687117172,0.36091408,58499.0,58498.0,3.9794455]
[1723687118260,0.36105636,58511.0,58498.0,4.8324695]
[1723687118464,0.14025636,58511.0,58498.0,0.15]
[1723687118667,0.14025636,58511.0,58500.0,0.3608]
[1723687118862,0.36105636,58511.0,58510.0,3.77]
[1723687119062,0.36105636,58511.0,58510.0,3.92]
[1723687119472,0.36105636,58511.0,58510.0,3.979804]
[1723687119672,0.059787,58527.0,58517.0,0.059796]
[1723687119876,0.3608,58529.0,58517.0,0.5108]
[1723687120069,0.5108,58529.0,58517.0,0.5108]
[1723687120261,0.5108,58529.0,58524.0,0.059789]
[1723687120462,0.5108,58529.0,58524.0,0.40932]
[1723687120876,0.5108,58529.0,58503.0,0.420611]
[1723687120877,0.059805,58509.0,58487.0,0.3608]
[1723687121174,0.059805,58509.0,58477.0,0.059837]
[1723687121175,0.3608,58492.0,58477.0,0.059837]
[1723687121372,0.3608,58485.0,58463.0,3.77]
[1723687121674,0.3608,58485.0,58473.0,0.059841]
[1723687121863,0.3608,58485.0,58482.0,0.00025636]
[1723687122768,0.3608,58485.0,58484.0,0.23950946]
[1723687123072,0.3608,58485.0,58484.0,4.00950946]
[1723687123073,1.413589,58485.0,58484.0,4.00950946]
[1723687123376,0.900629,58485.0,58484.0,4.00950946]
[1723687123878,0.3608,58485.0,58484.0,4.00950946]
[1723687124372,0.3608,58485.0,58484.0,4.69459446]
[1723687124870,0.3608,58485.0,58484.0,4.00950946]
[1723687125170,0.3608,58485.0,58484.0,3.77]
[1723687125373,0.8508,58485.0,58482.0,0.00025636]
[1723687125573,0.3608,58483.0,58482.0,0.00025636]
[1723687126079,0.820631,58483.0,58482.0,0.00025636]
[1723687126373,0.42075272,58483.0,58482.0,3.77025636]
[1723687127071,0.52092172,58483.0,58466.0,0.3608]
[1723687127276,0.52092172,58483.0,58414.0,0.3608]
[1723687127277,0.3608,58467.0,58414.0,0.3608]
[1723687127473,0.3608,58438.0,58423.0,0.08479037]
[1723687127672,0.3608,58437.0,58435.0,0.0678323]
[1723687127865,0.45068982,58437.0,58436.0,0.0678323]
[1723687128068,0.45068982,58437.0,58424.0,3.77]
[1723687128069,0.39081182,58437.0,58423.0,0.23944]
[1723687128264,0.39081182,58437.0,58392.0,0.08479037]
[1723687128265,0.059909,58407.0,58392.0,0.08479037]
[1723687128471,0.3608,58394.0,58372.0,0.0678044]
[1723687128666,0.3608,58394.0,58355.0,0.420762]
[1723687128667,0.34027578,58373.0,58361.0,0.06782406]
[1723687128870,0.34027578,58373.0,58355.0,0.3608]
[1723687128871,0.420746,58372.0,58370.0,0.302]
[1723687129067,0.40768437,58372.0,58370.0,0.302]
[1723687129278,0.40768437,58372.0,58361.0,0.23944]
[1723687129279,0.62768437,58372.0,58331.0,0.3608]
[1723687129490,0.3608,58332.0,58306.0,0.00016453]
[1723687129782,0.3608,58320.0,58307.0,0.3608]
[1723687130004,0.06733932,58365.0,58274.0,0.10174845]
[1723687130005,0.3608,58309.0,58286.0,0.06782406]
[1723687130284,0.7216,58301.0,58272.0,0.40084]
[1723687130580,0.3608,58296.0,58286.0,0.16454829]
[1723687130875,0.3608,58287.0,58273.0,0.44604785]
[1723687131066,0.3608,58281.0,58275.0,3.6392]
[1723687131267,0.3608,58281.0,58275.0,0.15096]
[1723687131268,0.3608,58276.0,58275.0,0.15096]
[1723687131473,0.72179253,58276.0,58263.0,0.25853348]
[1723687131677,0.7216,58264.0,58263.0,0.25853348]
[1723687131875,0.71925608,58264.0,58234.0,0.3608]
[1723687132068,0.51492,58263.0,58234.0,0.3608]
[1723687132265,0.51492,58263.0,58227.0,0.3608]
[1723687132266,0.00016036,58262.0,58227.0,0.3608]
[1723687132468,0.3608,58235.0,58219.0,0.3608]
[1723687132693,0.00012535,58234.0,58219.0,0.3608]
[1723687132879,0.25829501,58234.0,58215.0,0.012]
[1723687133071,0.3608,58231.0,58215.0,0.012]
[1723687133276,0.3608,58228.0,58215.0,0.012]
[1723687133474,0.05886009,58230.0,58224.0,0.3608]
[1723687133673,0.3608,58225.0,58215.0,0.012]
[1723687133875,0.3608,58216.0,58197.0,0.3608]
[1723687134067,0.00014245,58215.0,58208.0,3.77]
[1723687134273,0.23546397,58224.0,58214.0,0.3608]
[1723687134484,0.17196537,58267.0,58229.0,0.3608]
[1723687134673,3.76528,58429.0,58266.0,0.3608]
[1723687134674,0.3608,58277.0,58266.0,0.3608]
[1723687134874,0.3608,58277.0,58217.0,0.11429801]
[1723687134875,0.3608,58242.0,58217.0,0.11429801]
[1723687135176,0.7216,58218.0,58215.0,0.06533609]
[1723687135379,0.00012494,58217.0,58215.0,0.06533609]
[1723687135569,0.5093695,58218.0,58197.0,0.06533609]
[1723687135770,0.0044839,58273.0,58197.0,0.06533609]
[1723687135771,0.36105753,58225.0,58209.0,0.3608]
[1723687135980,0.00025753,58225.0,58215.0,0.3608]
[1723687136281,0.36060848,58216.0,58191.0,0.42613609]
[1723687136487,0.13004113,58217.0,58191.0,0.42613609]
[1723687136488,0.3608,58211.0,58194.0,0.06533609]
[1723687136674,0.3608,58211.0,58182.0,0.09798757]
[1723687136675,0.3608,58195.0,58183.0,0.06533609]
[1723687136880,0.3608,58195.0,58180.0,0.36084]
[1723687137080,0.01402622,58194.0,58184.0,0.25843001]
[1723687137373,0.01402622,58194.0,58181.0,0.25843001]
[1723687137374,0.7216,58189.0,58181.0,0.25843001]
[1723687137679,0.3608,58182.0,58180.0,4e-05]
[1723687138070,0.1462784,58198.0,58180.0,4e-05]
[1723687138071,0.00886164,58181.0,58180.0,4e-05]
[1723687138477,0.1455395,58186.0,58180.0,0.36084]
[1723687138780,0.00886164,58181.0,58180.0,0.420983]
[1723687138972,0.00025775,58191.0,58183.0,0.060139]
[1723687139175,0.3608,58209.0,58200.0,0.060121]
[1723687139475,0.3608,58217.0,58209.0,0.060112]
[1723687139683,0.3608,58223.0,58213.0,0.3608]
[1723687139871,0.3608,58229.0,58208.0,0.3608]
[1723687139872,0.3608,58229.0,58209.0,1.95774828]
[1723687140081,0.3608,58225.0,58213.0,0.3608]
[1723687140285,0.3608,58232.0,58224.0,0.3608]
[1723687140484,0.3608,58241.0,58224.0,0.3608]
[1723687140780,0.3608,58246.0,58226.0,0.060094]
[1723687140979,0.3608,58247.0,58240.0,0.06008]
[1723687141281,0.3608,58254.0,58243.0,0.3608]
[1723687141479,0.3608,58254.0,58250.0,0.06007]
[1723687141680,0.3608,58264.0,58253.0,0.3608]
[1723687141898,0.3608,58264.0,58249.0,0.3608]
[1723687142181,0.3608,58270.0,58259.0,0.3608]
[1723687142374,0.3608,58271.0,58264.0,0.060056]
[1723687142576,0.3608,58271.0,58264.0,0.3608]
[1723687142775,0.3608,58297.0,58270.0,0.3608]
[1723687142980,0.3608,58310.0,58296.0,0.3608]
[1723687143286,0.3608,58302.0,58298.0,3.77]
[1723687143483,0.3608,58310.0,58305.0,0.060013]
[1723687143783,0.3608,58310.0,58309.0,0.060009]
[1723687143990,0.3608,58326.0,58309.0,1.95774828]
[1723687144285,0.3608,58338.0,58331.0,1.95774828]
[1723687144490,0.3608,58350.0,58337.0,0.3608]
[1723687144795,0.3608,58365.0,58349.0,0.3608]
[1723687145081,0.3608,58376.0,58364.0,0.059953]
[1723687145288,0.3608,58371.0,58358.0,0.3608]
[1723687145473,0.3608,58366.0,58349.0,3.77]
[1723687145677,0.3608,58366.0,58362.0,0.059954]
[1723687145874,0.3608,58366.0,58349.0,3.77]
[1723687145875,0.3608,58366.0,58352.0,0.3608]
[1723687146088,0.3608,58366.0,58349.0,5.20079782]
[1723687146277,0.3608,58351.0,58349.0,3.77]
[1723687146581,0.5108,58351.0,58333.0,0.3608]
[1723687146789,0.5108,58351.0,58343.0,0.059974]
[1723687147081,0.3608,58354.0,58352.0,0.00025696]
[1723687147279,0.3608,58361.0,58357.0,0.05996]
[1723687147480,0.3608,58361.0,58358.0,3.77]
[1723687147678,0.059958,58359.0,58358.0,3.77]
[1723687147884,0.06,58359.0,58352.0,0.00025696]
[1723687148082,0.420764,58353.0,58332.0,0.3608]
[1723687148284,0.3608,58353.0,58341.0,4.1308]
[1723687148480,0.3608,58353.0,58347.0,0.05997]
[1723687148682,0.3608,58353.0,58345.0,1.95774828]
[1723687148879,0.3608,58364.0,58353.0,0.059963]
[1723687149088,0.3608,58364.0,58353.0,1.95774828]
[1723687149273,0.3608,58364.0,58361.0,0.059955]
[1723687149479,0.3608,58369.0,58361.0,0.059955]
[1723687149777,0.36105696,58364.0,58334.0,0.3608]
[1723687149985,0.36105696,58364.0,58318.0,0.1666]
[1723687149986,0.8010369,58346.0,58319.0,0.3608]
[1723687150181,0.04765041,58327.0,58319.0,0.5186]
[1723687150484,0.10100226,58325.0,58319.0,1.88942982]
[1723687150690,0.06368124,58321.0,58320.0,0.3608]
[1723687150879,0.04776509,58321.0,58320.0,0.3608]
[1723687151080,0.059999,58320.0,58318.0,0.1666]
[1723687151283,0.66432271,58319.0,58318.0,6.9e-07]
[1723687151577,0.3608,58314.0,58289.0,3.77]
[1723687151778,0.4404373,58290.0,58289.0,3.77]
[1723687151992,0.0796373,58290.0,58289.0,5.14082982]
[1723687152285,0.04786507,58290.0,58289.0,4.00524791]
[1723687152477,0.06388423,58292.0,58289.0,3.78082652]
[1723687152683,0.04791436,58297.0,58295.0,0.060023]
[1723687152886,0.04791436,58300.0,58296.0,3.02713745]
[1723687153085,0.04791436,58300.0,58298.0,0.06002]
[1723687153288,0.155732,58317.0,58299.0,0.3608]
[1723687153289,0.06395984,58304.0,58299.0,0.3608]
[1723687153492,0.06402906,58316.0,58303.0,0.3608]
[1723687153684,0.04802531,58335.0,58325.0,1.10437214]
[1723687153988,0.09604095,58343.0,58325.0,1.10437214]
[1723687153989,0.06403375,58343.0,58340.0,1.10437214]
[1723687154187,0.08004218,58344.0,58341.0,3.77]
[1723687154388,0.08004218,58345.0,58341.0,3.77]
[1723687154580,0.08004218,58345.0,58341.0,4.87437214]
[1723687154880,0.04818997,58348.0,58344.0,1.46517214]
[1723687155076,0.059975,58342.0,58341.0,3.77]
[1723687155291,0.059985,58333.0,58328.0,0.3608]
[1723687155484,0.09669402,58331.0,58328.0,0.3608]
[1723687155681,0.0277716,58330.0,58328.0,0.3608]
[1723687155881,0.09669402,58333.0,58331.0,1.10437214]
[1723687156086,0.3608,58342.0,58331.0,1.10437214]
[1723687156087,0.08954286,58332.0,58331.0,0.059986]
[1723687156279,0.02777681,58332.0,58328.0,0.3608]
[1723687156480,0.11149223,58329.0,58328.0,0.3608]
[1723687156682,0.02777681,58329.0,58322.0,0.3608]
[1723687156886,0.20290542,58328.0,58322.0,0.3608]
[1723687157082,0.25891134,58327.0,58322.0,0.420795]
[1723687157388,0.059984,58334.0,58322.0,0.420795]
[1723687157389,0.12741969,58323.0,58322.0,0.420795]
[1723687157686,0.3608,58332.0,58323.0,1.04436238]
[1723687157884,0.36105719,58337.0,58329.0,1.04436238]
[1723687158084,0.059987,58331.0,58322.0,0.3608]
[1723687158288,0.059987,58331.0,58313.0,0.1625]
[1723687158587,0.059987,58331.0,58210.0,0.06502683]
[1723687158789,0.3608,58310.0,58221.0,1.6485]
[1723687158983,0.3608,58310.0,58198.0,0.06502683]
[1723687158984,0.7216,58245.0,58236.0,0.20617]
[1723687159183,0.3608,58237.0,58222.0,3.77]
[1723687159383,0.3608,58227.0,58222.0,3.830098]
[1723687159581,0.00013596,58226.0,58222.0,4.17]
[1723687159797,1e-08,58226.0,58223.0,0.75536]
[1723687159985,0.3608,58249.0,58225.0,0.3608]
[1723687160185,0.3608,58254.0,58248.0,0.3608]
[1723687160388,0.3608,58266.0,58253.0,0.3608]
[1723687160586,0.00025719,58283.0,58222.0,3.77]
[1723687160587,0.3608,58281.0,58260.0,0.3608]
[1723687160786,0.3608,58287.0,58280.0,0.3608]
[1723687160982,5.663e-05,58286.0,58281.0,0.51472]
[1723687161484,0.3608,58303.0,58286.0,0.060033]
[1723687161685,0.060019,58300.0,58287.0,0.24016]
[1723687161884,0.3608,58303.0,58296.0,0.3608]
[1723687162293,0.3608,58303.0,58297.0,0.5146]
[1723687162692,0.060021,58297.0,58296.0,0.3608]
[1723687162902,0.060031,58288.0,58287.0,0.24016]
[1723687163193,0.3608,58288.0,58267.0,0.3608]
[1723687163388,0.060051,58269.0,58267.0,0.3608]
[1723687163590,0.060051,58269.0,58268.0,3.77]
[1723687163890,0.060051,58269.0,58268.0,4.17]
[1723687164093,0.00025744,58274.0,58268.0,4.68484]
[1723687164286,0.00025744,58274.0,58273.0,0.3608]
[1723687164594,0.060031,58288.0,58273.0,0.3608]
[1723687164790,0.060031,58288.0,58281.0,0.3608]
[1723687164999,0.060031,58288.0,58283.0,3.77]
[1723687165290,0.060023,58296.0,58283.0,3.77]
[1723687165487,0.3608,58297.0,58283.0,3.77]
[1723687165888,0.060027,58292.0,58283.0,3.77]
[1723687166088,0.060027,58292.0,58284.0,0.00025744]
[1723687166291,0.060029,58290.0,58288.0,0.3608]
[1723687166484,0.060029,58290.0,58284.0,0.00025744]
[1723687166692,0.060031,58289.0,58284.0,0.00025744]
[1723687166882,0.060031,58288.0,58284.0,0.00025744]
[1723687167090,0.51468,58294.0,58280.0,0.24024]
[1723687167388,0.060064,58256.0,58225.0,0.3608]
[1723687167594,0.3608,58241.0,58226.0,3.77]
[1723687167794,0.060093,58228.0,58226.0,3.77]
[1723687167995,0.3608,58241.0,58226.0,3.77]
[1723687168302,0.3608,58253.0,58241.0,0.060079]
[1723687168598,0.00018518,58252.0,58242.0,0.24024]
[1723687168891,0.06025318,58252.0,58242.0,0.24024]
[1723687169091,0.00018518,58252.0,58242.0,0.24024]
[1723687169295,0.060072,58248.0,58242.0,0.24024]
[1723687169492,0.00018518,58252.0,58242.0,0.24024]
[1723687169895,0.00018518,58252.0,58245.0,0.3608]
[1723687170293,0.00018518,58252.0,58250.0,0.3608]
[1723687170494,0.3608,58273.0,58250.0,0.3608]
[1723687170495,0.060049,58271.0,58251.0,0.515]
[1723687170706,0.3608,58278.0,58270.0,0.3608]
[1723687170992,0.060043,58276.0,58271.0,0.24028]
[1723687171191,0.060037,58282.0,58275.0,4.1308]
[1723687171590,0.060029,58290.0,58281.0,0.3608]
[1723687171993,0.00025744,58284.0,58281.0,0.3608]
[1723687172190,0.00025744,58284.0,58283.0,3.77]
[1723687172587,0.060045,58274.0,58273.0,0.00025744]
[1723687172788,0.060064,58256.0,58246.0,0.3608]
[1723687172992,0.060073,58247.0,58246.0,0.3608]
[1723687173188,0.060073,58247.0,58246.0,4.1308]
[1723687173405,0.05989901,58247.0,58246.0,5.04584]
[1723687173692,0.060069,58251.0,58246.0,5.04584]
[1723687173900,0.00015998,58250.0,58246.0,4.4916]
[1723687174292,0.00015998,58250.0,58248.0,0.060071]
[1723687174488,0.00025744,58254.0,58252.0,0.060067]
[1723687174785,0.3608,58274.0,58253.0,0.3608]
[1723687174990,0.3608,58274.0,58267.0,0.3608]
[1723687175195,0.3608,58289.0,58273.0,0.3608]
[1723687175394,0.060035,58284.0,58279.0,0.3608]
[1723687175597,0.060025,58294.0,58279.0,0.3608]
[1723687175795,0.060034,58285.0,58279.0,0.3608]
[1723687175998,0.060034,58285.0,58284.0,4.1308]
[1723687176799,0.00025744,58287.0,58284.0,5.04552]
[1723687177006,0.3608,58311.0,58291.0,0.060027]
[1723687177301,0.3608,58311.0,58299.0,0.3608]
[1723687177596,0.3608,58311.0,58300.0,4.01028]
[1723687177998,0.060013,58306.0,58300.0,4.01028]
[1723687178198,0.060013,58306.0,58305.0,0.3608]
[1723687178395,0.3608,58323.0,58305.0,0.3608]
[1723687178595,0.120034,58301.0,58300.0,0.24028]
[1723687178797,0.060047,58272.0,58271.0,0.00015512]
[1723687179196,0.120094,58272.0,58271.0,0.00015512]
[1723687179397,0.640894,58272.0,58271.0,0.00015512]
[1723687179602,0.420847,58272.0,58271.0,0.40015512]
[1723687179990,0.060047,58272.0,58271.0,0.40015512]
[1723687180196,0.060047,58272.0,58271.0,0.76095512]
[1723687180409,0.060047,58272.0,58271.0,0.40015512]
[1723687180700,0.00025744,58277.0,58271.0,0.40015512]
[1723687180913,0.00025744,58277.0,58271.0,0.00015512]
[1723687181103,0.00025744,58277.0,58272.0,3.77]
[1723687181290,0.06030044,58277.0,58273.0,0.3608]
[1723687182190,0.00025744,58277.0,58273.0,0.420846]
[1723687182391,0.00025744,58277.0,58273.0,0.7608]
[1723687182795,0.3608,58282.0,58278.0,0.06004]